[Event "22nd Rochefort Festival Masters 2024"]
[Site "Rochefort"]
[Date "2024.02.22"]
[Round "8.2"]
[White "Boyer, Mahel"]
[Black "Droin, Augustin"]
[Result "0-1"]
[ECO "B29"]
[WhiteElo "2428"]
[BlackElo "2471"]
[Annotator "RC"]
[PlyCount "98"]
[EventDate "2024.02.18"]
[EventType "swiss"]
[EventCountry "FRA"]
[SourceTitle "playchess.com"]
[Source "ChessBase"]
[SourceQuality "1"]
[TimeControl "40/5400+30:1800+30"]

1. e4 {[%emt 0:10:12]} c5 {[%emt 0:00:58]} 2. Nf3 {[%emt 0:00:15]} Nf6 {[%emt 0:00:05]} 3. e5 {[%emt 0:01:06]} Nd5 {[%emt 1:30:57]} 4. g3 {[%emt 1:20:57]} Nc6 {[%emt 0:00:00]} 5. Bg2 {[%emt 0:00:30]} d6 {[%emt 0:00:00]} 6. exd6 {[%emt 0:00:30]} Qxd6 {[%emt 0:01:30]} 7. O-O {[%emt 0:00:00]} Bg4 {[%emt 0:00:30]} 8. h3 {[%emt 0:01:00]} Bh5 {[%emt 0:00:00]} 9. d4 {[%emt 0:00:30]} O-O-O {[%emt 0:01:00]} 10. Na3 {[%emt 0:00:30]} cxd4 {[%emt 0:00:00]} 11. g4 {[%emt 0:00:00]} Bg6 {[%emt 0:01:00]} 12. Nxd4 {[%emt 0:01:00]} Nc7 {[%emt 0:00:30]} 13. Nxc6 {[%emt 0:00:00]} Qxd1 {[%emt 0:00:00]} 14. Nxa7+ {[%emt 0:00:00]} Kb8 {[%emt 0:00:00]} 15. Bf4 {[%emt 0:01:30]} Qxf1+ {[%emt 0:00:00]} 16. Rxf1 {[%emt 0:00:00]} e5 {[%emt 0:00:00]} 17. Bxe5 {[%emt 0:00:00]} Bd6 {[%emt 0:02:30]} 18. Bxd6 {[%emt 0:00:00]} Rxd6 {[%emt 0:00:00]} 19. N7b5 {[%emt 0:00:00]} Nxb5 {[%emt 0:00:00]} 20. Nxb5 {[%emt 0:00:00]} Rb6 {[%emt 0:00:00]} 21. c4 {[%emt 0:03:00]} Bd3 {[%emt 0:02:00]} 22. Rc1 {[%emt 0:00:00]} Rc8 {[%emt 0:00:30]} 23. Nc3 {[%emt 0:01:00]} Rxb2 {[%emt 0:00:30]} 24. Bd5 {[%emt 0:00:30]} f6 {[%emt 0:00:30]} 25. Ne4 {[%emt 0:00:30]} Bxe4 {[%emt 0:00:00]} 26. Bxe4 {[%emt 0:00:30]} h6 {[%emt 0:00:00]} 27. Bd5 {[%emt 0:00:30]} Rxa2 {[%emt 0:00:00]} 28. Re1 {[%emt 0:00:30]} Rb2 {[%emt 0:02:00]} 29. Re6 {[%emt 0:00:30]} Rc7 {[%emt 0:00:00]} 30. Kg2 {[%emt 0:00:30]} Rd7 {[%emt 0:01:00]} 31. Kg3 {[%emt 0:00:30]} Kc7 {[%emt 0:00:00]} 32. f3 {[%emt 0:00:30]} Rb6 {[%emt 0:01:00]} 33. Re8 {[%emt 0:00:30]} Kd6 {[%emt 0:00:00]} 34. Kf4 {[%emt 0:00:30]} Kc5 {[%emt 0:01:00]} 35. Kf5 {[%emt 0:00:30]} Rbd6 {[%emt 0:00:00]} 36. Rb8 {[%emt 0:00:30]} Rxd5+ {[%emt 0:00:00]} 37. cxd5 {[%emt 0:00:00]} Kxd5 {[%emt 0:00:00]} 38. h4 {[%emt 0:01:00]} Rc7 {[%emt 0:02:00]} 39. f4 {[%emt 0:00:30]} Kc4 {[%emt 0:00:00]} 40. g5 {[%emt 0:00:00]} fxg5 {[%emt 0:01:00]} 41. fxg5 {[%emt 0:31:00]} hxg5 {[%emt 0:30:30]} 42. hxg5 {[%emt 0:00:00]} b5 {[%emt 0:00:30]} 43. Re8 {[%emt 0:01:00]} b4 {[%emt 0:00:30]} 44. Re1 {[%emt 0:00:30]} Rb7 {[%emt 0:00:30]} 45. Re4+ {[%emt 0:00:30]} Kd3 {[%emt 0:00:00]} 46. Rh4 {[%emt 0:00:30]} b3 {[%emt 0:00:00]} 47. Kg6 {[%emt 0:00:30]} b2 {[%emt 0:00:00]} 48. Rh1 {[%emt 0:00:00]} Kc2 {[%emt 0:02:00]} 49. Rh2+ {[%emt 0:00:00]} Kb3 {[%emt 0:00:00]} 0-1

[Event "22nd Rochefort Festival Masters 2024"]
[Site "Rochefort"]
[Date "2024.02.22"]
[Round "8.3"]
[White "Filip, Lucian-Ioan"]
[Black "Eugene, Floryan"]
[Result "0-1"]
[ECO "A90"]
[WhiteElo "2369"]
[BlackElo "2398"]
[Annotator "RC"]
[PlyCount "134"]
[EventDate "2024.02.18"]
[EventType "swiss"]
[EventCountry "FRA"]
[SourceTitle "playchess.com"]
[Source "ChessBase"]
[SourceQuality "1"]
[TimeControl "40/5400+30:1800+30"]

1. d4 {[%emt 1:31:00]} f5 {[%emt 1:31:00]} 2. g3 {[%emt 0:00:30]} Nf6 {[%emt 0:00:00]} 3. Bg2 {[%emt 0:00:30]} e6 {[%emt 0:00:00]} 4. Nf3 {[%emt 0:00:00]} d5 {[%emt 0:00:00]} 5. O-O {[%emt 0:01:00]} Bd6 {[%emt 0:00:00]} 6. c4 {[%emt 0:00:00]} c6 {[%emt 0:02:30]} 7. b3 {[%emt 0:00:00]} Qe7 {[%emt 0:00:30]} 8. Bb2 {[%emt 0:01:30]} O-O {[%emt 0:00:30]} 9. Nbd2 {[%emt 0:00:30]} Bd7 {[%emt 0:00:30]} 10. Ne5 {[%emt 0:00:00]} Be8 {[%emt 0:00:30]} 11. Ndf3 {[%emt 0:01:00]} Nbd7 {[%emt 0:00:00]} 12. Nd3 {[%emt 0:00:30]} Ne4 {[%emt 0:01:00]} 13. c5 {[%emt 0:00:00]} Bc7 {[%emt 0:00:00]} 14. b4 {[%emt 0:01:00]} g5 {[%emt 0:01:00]} 15. Nfe5 {[%emt 0:00:30]} Nef6 {[%emt 0:00:30]} 16. Qd2 {[%emt 0:00:30]} Qg7 {[%emt 0:00:30]} 17. f3 {[%emt 0:00:30]} Nxe5 {[%emt 0:00:00]} 18. dxe5 {[%emt 0:00:30]} Nd7 {[%emt 0:01:00]} 19. f4 {[%emt 0:00:30]} Bd8 {[%emt 0:00:30]} 20. Bd4 {[%emt 0:00:00]} Rf7 21. a4 {[%emt 0:01:00]} Nf8 {[%emt 0:01:00]} 22. Ne1 {[%emt 0:00:30]} h5 {[%emt 0:00:00]} 23. Nf3 {[%emt 0:00:30]} g4 {[%emt 0:01:00]} 24. Ne1 {[%emt 0:00:30]} h4 {[%emt 0:00:30]} 25. Rf2 {[%emt 0:00:30]} Qh6 {[%emt 0:00:30]} 26. Bf1 {[%emt 0:00:30]} Rh7 {[%emt 0:00:00]} 27. Rg2 {[%emt 0:00:30]} Ng6 {[%emt 0:01:00]} 28. e3 {[%emt 0:00:30]} a5 {[%emt 0:00:00]} 29. Kf2 {[%emt 0:00:00]} axb4 {[%emt 0:00:00]} 30. Qxb4 {[%emt 0:01:00]} Ba5 {[%emt 0:01:30]} 31. Qb3 {[%emt 0:00:30]} Rb8 {[%emt 0:00:30]} 32. Bc3 {[%emt 0:00:30]} Bd8 {[%emt 0:00:00]} 33. a5 {[%emt 0:00:30]} Qf8 {[%emt 0:01:00]} 34. Bd4 {[%emt 0:00:00]} Ra8 {[%emt 0:00:30]} 35. a6 {[%emt 0:01:00]} bxa6 {[%emt 0:00:00]} 36. Rxa6 {[%emt 0:00:30]} Rxa6 {[%emt 0:00:00]} 37. Bxa6 {[%emt 0:00:00]} Ra7 {[%emt 0:01:30]} 38. Bf1 {[%emt 0:01:00]} h3 {[%emt 0:00:00]} 39. Rg1 {[%emt 0:00:30]} Qe7 {[%emt 0:00:00]} 40. Nd3 {[%emt 0:00:30]} Rb7 {[%emt 0:01:30]} 41. Qa2 {[%emt 0:30:30]} Rb5 {[%emt 0:30:30]} 42. Be2 {[%emt 0:00:30]} Qb7 {[%emt 0:00:30]} 43. Ra1 {[%emt 0:00:30]} Ra5 {[%emt 0:00:30]} 44. Qc2 {[%emt 0:00:30]} Rxa1 {[%emt 0:00:00]} 45. Bxa1 {[%emt 0:00:30]} Bd7 {[%emt 0:01:00]} 46. Qa4 {[%emt 0:00:30]} Be7 {[%emt 0:00:30]} 47. Qa2 {[%emt 0:00:30]} Bc8 {[%emt 0:00:30]} 48. Bd4 {[%emt 0:00:00]} Nf8 {[%emt 0:00:30]} 49. Qa5 {[%emt 0:01:00]} Qb1 {[%emt 0:00:30]} 50. Qe1 {[%emt 0:00:30]} Qxe1+ {[%emt 0:00:30]} 51. Kxe1 {[%emt 0:00:00]} Nd7 {[%emt 0:00:30]} 52. Nb4 {[%emt 0:01:00]} Bb7 {[%emt 0:00:30]} 53. Ba6 {[%emt 0:00:30]} Bxa6 {[%emt 0:00:00]} 54. Nxa6 {[%emt 0:00:00]} Bd8 {[%emt 0:01:00]} 55. Bc3 {[%emt 0:01:00]} Kf7 {[%emt 0:00:30]} 56. Ke2 {[%emt 0:00:30]} Ke8 {[%emt 0:00:30]} 57. Bb4 {[%emt 0:00:30]} Be7 {[%emt 0:00:30]} 58. Nc7+ {[%emt 0:00:00]} Kf7 {[%emt 0:00:00]} 59. Na6 {[%emt 0:00:00]} Bf8 60. Kd3 {[%emt 0:01:30]} Ke8 {[%emt 0:01:30]} 61. Nc7+ {[%emt 0:00:00]} Ke7 {[%emt 0:00:30]} 62. Kd4 {[%emt 0:01:00]} Nb8 {[%emt 0:00:30]} 63. Na8 {[%emt 0:00:00]} Na6 64. Ba5 {[%emt 0:01:00]} Kf7 {[%emt 0:01:00]} 65. Bb6 {[%emt 0:00:30]} Be7 {[%emt 0:00:30]} 66. Nc7 {[%emt 0:00:30]} Nxc7 {[%emt 0:00:30]} 67. Bxc7 {[%emt 0:00:00]} Bh4 {[%emt 0:00:00]} 0-1

[Event "22nd Rochefort Festival Masters 2024"]
[Site "Rochefort"]
[Date "2024.02.22"]
[Round "8.4"]
[White "Laurent-Paoli, Pierre"]
[Black "Mullon, Jean-Baptiste"]
[Result "1/2-1/2"]
[ECO "D17"]
[WhiteElo "2529"]
[BlackElo "2305"]
[Annotator "TA"]
[PlyCount "155"]
[EventDate "2024.02.18"]
[EventType "swiss"]
[EventCountry "FRA"]
[SourceTitle "playchess.com"]
[Source "ChessBase"]
[SourceQuality "1"]
[TimeControl "40/5400+30:1800+30"]

{[%evp 44,155,101,102,113,102,154,145,176,143,177,177,236,240,213,225,280,260,261,277,244,229,227,221,201,112,124,79,87,100,87,100,197,166,165,0,0,0,0,0,0,0,0,0,0,0,0,0,0,0,0,0,0,0,0,0,0,0,0,0,0,0,0,0,0,0,0,0,0,0,0,0,0,0,0,0,0,0,0,0,0,0,0,0,0,0,0,0,0,0,0,0,0,0,0,0,0,0,0,0,0,0,0,0,0,0,0,0,0,0,0,0,0,0]} 1. d4 {[%emt 0:08:02]} d5 {[%emt 1:31:00]} 2. c4 {[%emt 0:00:25]} c6 {[%emt 0:00:00]} 3. Nf3 {[%emt 0:00:10]} Nf6 {[%emt 0:01:00]} 4. Nc3 {[%emt 1:23:53]} dxc4 {[%emt 0:00:30]} 5. a4 {[%emt 0:00:00]} Bf5 {[%emt 0:00:30]} 6. Ne5 {[%emt 0:01:00]} Nbd7 {[%emt 0:00:30]} 7. Nxc4 {[%emt 0:00:30]} Qc7 {[%emt 0:00:00]} 8. g3 {[%emt 0:00:00]} e5 {[%emt 0:01:00]} 9. dxe5 {[%emt 0:00:00]} Nxe5 {[%emt 0:00:00]} 10. Bf4 {[%emt 0:01:30]} Nfd7 {[%emt 0:01:00]} 11. Bg2 {[%emt 0:00:30]} g5 {[%emt 0:00:30]} 12. Nxe5 {[%emt 0:00:30]} gxf4 {[%emt 0:00:00]} 13. Nxd7 {[%emt 0:00:30]} Bxd7 {[%emt 0:01:00]} 14. Qd4 {[%emt 0:00:00]} Rg8 {[%emt 0:00:30]} 15. Bf3 {[%emt 0:01:00]} Bg7 {[%emt 0:00:30]} 16. Qxf4 {[%emt 0:00:00]} Qxf4 {[%emt 0:00:00]} 17. gxf4 {[%emt 0:00:00]} Be6 {[%emt 0:01:00]} 18. a5 {[%emt 0:01:30]} O-O-O {[%emt 0:00:30]} 19. a6 {[%emt 0:00:30]} Bxc3+ {[%emt 0:00:00]} 20. bxc3 {[%emt 0:00:00]} Bd5 {[%emt 0:01:00]} 21. Bxd5 {[%emt 0:00:00]} Rxd5 {[%emt 0:00:00]} 22. axb7+ {[%emt 0:01:30]} Kxb7 {[%emt 0:01:00]} 23. e3 {[%emt 0:00:30]} a5 {[%emt 0:00:30]} 24. Ke2 {[%emt 0:00:30]} Rgd8 {[%emt 0:00:30]} (24... Rb5 $142) 25. Rhg1 $16 {[%emt 0:00:30]} R8d7 {[%emt 0:00:30]} 26. Rg7 {[%emt 0:00:30]} h6 {[%emt 0:00:30]} 27. Rh7 {[%emt 0:00:30]} Kb6 {[%emt 0:00:30]} (27... Rh5 {was worth a try.} 28. Kf3 Rxh2) 28. Rxh6 $18 {[%emt 0:00:30]} Rd2+ {[%emt 0:00:30]} 29. Kf3 {[%emt 0:00:30]} Rc2 {[%emt 0:00:30]} 30. Rb1+ {[%emt 0:00:00]} Kc7 {[%emt 0:00:00]} 31. Rh5 {[%emt 0:01:00]} Rdd2 {[%emt 0:01:00]} 32. Rxa5 {[%emt 0:00:30]} Rxf2+ {[%emt 0:00:30]} 33. Ke4 {[%emt 0:00:30]} Rxc3 {[%emt 0:00:30]} 34. Kd4 {[%emt 0:00:30]} ({Better is} 34. h4 $18) 34... Rfc2 $16 {[%emt 0:00:30]} 35. Ra7+ {[%emt 0:00:00]} Kd6 {[%emt 0:00:30]} 36. Rxf7 {[%emt 0:01:00]} Rc4+ {[%emt 0:00:00]} 37. Kd3 {[%emt 0:00:00]} R4c3+ {[%emt 0:00:00]} (37... R2c3+ $16 {was necessary.} 38. Kd2 Rc2+ 39. Kd3 R2c3+ 40. Kd2 Rc2+ 41. Kd3) 38. Ke4 $18 {[%emt 0:00:00]} Re2 {[%emt 0:01:30]} 39. Rd1+ $2 {[%emt 0:01:30]} ({White should play} 39. Kf5 $18 {e4 is the strong threat.} Rcxe3 40. Rd1+ Kc5 41. h4) 39... Ke6 $11 {[%emt 0:00:00]} 40. Rd3 {[%emt 0:00:30]} Rc4+ {[%emt 0:01:00]} 41. Kf3 {[%emt 0:30:30]} Rxe3+ {[%emt 0:30:30]} 42. Rxe3+ {[%emt 0:00:00]} Kxf7 {[%emt 0:00:30]} 43. Kg4 {[%emt 0:01:00]} Kf6 {[%emt 0:00:30]} 44. h4 {[%emt 0:00:30]} Rc1 {[%emt 0:00:00]} 45. h5 {[%emt 0:00:30]} Rg1+ {[%emt 0:00:00]} 46. Rg3 {[%emt 0:00:00]} Rh1 {[%emt 0:01:30]} 47. Rc3 {[%emt 0:01:00]} Rg1+ {[%emt 0:00:30]} 48. Kf3 {[%emt 0:00:30]} Rf1+ {[%emt 0:00:30]} 49. Kg3 {[%emt 0:00:00]} Rg1+ $1 {[%emt 0:00:30]} 50. Kf2 {[%emt 0:01:00]} Ra1 {[%emt 0:00:30]} 51. Rc5 {[%emt 0:00:30]} Ra3 {[%emt 0:00:00]} 52. Kg2 {[%emt 0:00:30]} Rd3 {[%emt 0:01:00]} 53. Rg5 {[%emt 0:00:30]} Ra3 {[%emt 0:00:30]} 54. Rc5 {[%emt 0:00:30]} Rb3 {[%emt 0:00:30]} 55. Rg5 {[%emt 0:00:30]} Ra3 {[%emt 0:00:30]} 56. Rg3 {[%emt 0:00:30]} Ra1 {[%emt 0:00:30]} 57. Kf3 {[%emt 0:00:30]} Rf1+ {[%emt 0:00:00]} 58. Kg4 {[%emt 0:00:30]} Rh1 {[%emt 0:00:00]} 59. Rg2 {[%emt 0:00:30]} Ra1 {[%emt 0:01:30]} 60. Rc2 {[%emt 0:00:00]} Rg1+ {[%emt 0:00:30]} 61. Kf3 {[%emt 0:00:00]} Rf1+ 62. Kg3 {[%emt 0:01:30]} Rg1+ {[%emt 0:01:00]} 63. Kh2 {[%emt 0:00:30]} Ra1 {[%emt 0:00:30]} 64. Rc5 {[%emt 0:00:30]} Ra3 {[%emt 0:00:30]} 65. Kg2 {[%emt 0:00:30]} Rb3 {[%emt 0:00:30]} 66. h6 {[%emt 0:00:30]} Kg6 {[%emt 0:00:30]} 67. Rxc6+ {[%emt 0:00:00]} Kh7 {[%emt 0:00:30]} 68. f5 {[%emt 0:01:00]} Ra3 {[%emt 0:00:30]} 69. Rg6 {[%emt 0:00:30]} Ra5 {[%emt 0:00:30]} 70. Rf6 {[%emt 0:00:00]} Ra3 71. Re6 {[%emt 0:01:00]} Ra5 {[%emt 0:01:00]} 72. f6 {[%emt 0:00:30]} Kxh6 {[%emt 0:00:30]} 73. f7+ {[%emt 0:00:30]} Kg7 {[%emt 0:00:30]} 74. Rf6 {[%emt 0:00:00]} Kf8 {[%emt 0:00:00]} (74... Kxf6 75. f8=Q+ (75. f8=B Rg5+ 76. Kf3 Ke6 $11) 75... Kg6 76. Qe8+ Kg7 77. Kf3 Rf5+ 78. Kg4 Rf1 79. Qe5+ Kg8 80. Qd5+ Kg7 81. Kg5) 75. Kg3 {[%emt 0:01:00]} Ra7 {[%emt 0:01:00]} 76. Kf4 {[%emt 0:00:30]} Rxf7 {[%emt 0:00:00]} 77. Rxf7+ {[%emt 0:00:30]} Kxf7 {[%emt 0:01:00]} 78. Ke4 {[%emt 0:00:30]} 1/2-1/2

[Event "22nd Rochefort Festival Masters 2024"]
[Site "Rochefort"]
[Date "2024.02.22"]
[Round "8.5"]
[White "Mekhane, Adam"]
[Black "Roshka, Yevgeniy"]
[Result "0-1"]
[ECO "B66"]
[WhiteElo "2280"]
[BlackElo "2474"]
[Annotator "RC"]
[PlyCount "130"]
[EventDate "2024.02.18"]
[EventType "swiss"]
[EventCountry "FRA"]
[SourceTitle "playchess.com"]
[Source "ChessBase"]
[SourceQuality "1"]
[TimeControl "40/5400+30:1800+30"]

1. e4 {[%emt 1:31:00]} c5 {[%emt 1:31:00]} 2. Nf3 {[%emt 0:00:00]} d6 {[%emt 0:00:30]} 3. d4 {[%emt 0:00:00]} cxd4 {[%emt 0:00:30]} 4. Nxd4 {[%emt 0:00:00]} Nf6 {[%emt 0:00:00]} 5. Nc3 {[%emt 0:02:00]} Nc6 {[%emt 0:01:00]} 6. Bg5 {[%emt 0:00:00]} e6 {[%emt 0:00:30]} 7. Qd2 {[%emt 0:00:00]} a6 {[%emt 0:00:00]} 8. Nxc6 {[%emt 0:00:00]} bxc6 {[%emt 0:01:00]} 9. O-O-O {[%emt 0:00:00]} Be7 {[%emt 0:00:30]} 10. Bxf6 {[%emt 0:02:30]} gxf6 {[%emt 0:00:30]} 11. Bc4 {[%emt 0:00:30]} Bb7 {[%emt 0:00:30]} 12. Qe3 {[%emt 0:00:30]} Qa5 {[%emt 0:00:30]} 13. Kb1 {[%emt 0:00:00]} O-O-O {[%emt 0:00:30]} 14. a3 {[%emt 0:01:00]} Rhg8 {[%emt 0:00:30]} 15. g3 {[%emt 0:00:30]} d5 {[%emt 0:00:30]} 16. Bb3 {[%emt 0:00:30]} Qc5 {[%emt 0:00:30]} 17. Qf3 {[%emt 0:00:30]} dxe4 {[%emt 0:00:30]} 18. Qxe4 {[%emt 0:00:30]} f5 {[%emt 0:00:30]} 19. Bxe6+ {[%emt 0:00:30]} fxe6 {[%emt 0:00:00]} 20. Qxe6+ {[%emt 0:00:00]} Kb8 {[%emt 0:01:00]} 21. Na4 {[%emt 0:00:00]} Qa5 {[%emt 0:00:30]} 22. Qxe7 {[%emt 0:00:00]} Rxd1+ {[%emt 0:00:00]} 23. Rxd1 {[%emt 0:00:00]} Qxa4 {[%emt 0:01:00]} 24. Qxh7 {[%emt 0:02:30]} Re8 {[%emt 0:00:30]} 25. Qxf5 {[%emt 0:00:30]} Qc4 {[%emt 0:00:30]} 26. h4 {[%emt 0:00:00]} Re2 27. h5 {[%emt 0:01:00]} Bc8 {[%emt 0:01:00]} 28. Qg6 {[%emt 0:00:30]} Qc5 {[%emt 0:00:30]} 29. h6 {[%emt 0:00:30]} Bf5 {[%emt 0:00:30]} 30. Qg8+ {[%emt 0:00:30]} Ka7 {[%emt 0:00:00]} 31. Qf7+ Kb6 {[%emt 0:01:00]} 32. Qb3+ {[%emt 0:01:00]} Ka5 {[%emt 0:00:30]} 33. Rc1 {[%emt 0:00:30]} Rxf2 {[%emt 0:00:30]} 34. Qb8 {[%emt 0:00:30]} Bxc2+ {[%emt 0:00:30]} 35. Ka1 {[%emt 0:00:30]} Ka4 {[%emt 0:00:30]} 36. Rh1 {[%emt 0:00:30]} Qc4 {[%emt 0:00:30]} 37. b3+ {[%emt 0:00:30]} Bxb3 {[%emt 0:00:30]} 38. Qb4+ {[%emt 0:00:00]} Qxb4 {[%emt 0:00:30]} 39. axb4 {[%emt 0:00:00]} Ka3 {[%emt 0:00:30]} 40. Kb1 {[%emt 0:01:30]} Bc2+ {[%emt 0:00:30]} 41. Kc1 {[%emt 0:30:30]} Bh7 {[%emt 0:30:30]} 42. Rh4 {[%emt 0:00:30]} Kb3 {[%emt 0:00:30]} 43. Kd1 {[%emt 0:00:30]} Rg2 {[%emt 0:00:30]} 44. Rf4 {[%emt 0:00:00]} Rxg3 45. Rf7 {[%emt 0:01:00]} Bc2+ {[%emt 0:01:00]} 46. Kd2 {[%emt 0:00:30]} Rg2+ {[%emt 0:00:30]} 47. Ke3 {[%emt 0:00:30]} Kxb4 {[%emt 0:00:30]} 48. Rb7+ {[%emt 0:00:30]} Kc5 {[%emt 0:00:30]} 49. Rb2 {[%emt 0:00:30]} Rg3+ {[%emt 0:00:30]} 50. Kf4 {[%emt 0:00:30]} Rc3 {[%emt 0:00:30]} 51. Ra2 {[%emt 0:00:30]} Kb6 {[%emt 0:00:30]} 52. Rb2+ {[%emt 0:00:30]} Kc7 {[%emt 0:00:30]} 53. Ra2 {[%emt 0:00:30]} Rc4+ {[%emt 0:00:30]} 54. Ke5 {[%emt 0:00:30]} Rc5+ {[%emt 0:00:30]} 55. Kd4 {[%emt 0:00:00]} Rd5+ {[%emt 0:00:30]} 56. Kc3 {[%emt 0:00:00]} Bg6 57. Rg2 {[%emt 0:01:30]} Rd6 {[%emt 0:01:00]} 58. Rg1 {[%emt 0:00:30]} a5 {[%emt 0:00:30]} 59. Rg5 {[%emt 0:00:30]} Kb6 {[%emt 0:00:30]} 60. Rg4 {[%emt 0:00:30]} Kb5 {[%emt 0:00:30]} 61. Kb2 {[%emt 0:00:30]} c5 {[%emt 0:00:30]} 62. Ka3 {[%emt 0:00:30]} Bh7 {[%emt 0:00:30]} 63. Rh4 {[%emt 0:00:00]} Rd3+ {[%emt 0:00:00]} 64. Kb2 {[%emt 0:01:00]} c4 {[%emt 0:01:00]} 65. Rf4 {[%emt 0:00:30]} Rd6 {[%emt 0:00:30]} 0-1

[Event "22nd Rochefort Festival Masters 2024"]
[Site "Rochefort"]
[Date "2024.02.23"]
[Round "9.1"]
[White "Mullon, Jean-Baptiste"]
[Black "Sivuk, Vitaly"]
[Result "0-1"]
[ECO "B17"]
[WhiteElo "2305"]
[BlackElo "2502"]
[Annotator "TA"]
[PlyCount "80"]
[EventDate "2024.02.18"]
[EventType "swiss"]
[EventCountry "FRA"]
[SourceTitle "playchess.com"]
[Source "ChessBase"]
[SourceQuality "1"]
[TimeControl "40/5400+30:1800+30"]

{[%evp 14,80,37,0,21,0,0,0,0,0,0,-50,-41,-33,-8,-4,-21,-138,-114,-131,-81,-96,-80,-89,-72,-81,-70,-104,-57,-70,-70,-46,-43,-47,-55,-84,-40,-89,0,-120,-129,-143,-80,-114,-74,-75,-54,-163,-175,-222,-202,-216,-181,-200,-199,-213,-183,-187,-187,-218,-221,-308,-358,-358,-336,-29982,-29983,-29991,-29992]} 1. e4 {[%emt 1:31:00]} c6 {[%emt 1:31:00]} 2. d4 {[%emt 0:00:00]} d5 {[%emt 0:00:00]} 3. Nc3 {[%emt 0:00:00]} dxe4 {[%emt 0:00:00]} 4. Nxe4 {[%emt 0:00:00]} Nd7 {[%emt 0:01:30][%cal Bb8d7,Bd7f6,Bf6d5][%mdl 32]} 5. Bc4 {[%emt 0:02:00]} Ngf6 {[%emt 0:00:00]} 6. Nxf6+ {[%emt 0:00:00]} Nxf6 {[%emt 0:00:00]} 7. c3 {[%emt 0:01:00]} Qc7 {[%emt 0:01:30]} 8. Qe2 {[%emt 0:00:30]} Bg4 {[%emt 0:00:00]} 9. f3 {[%emt 0:00:30]} Bf5 {[%emt 0:00:00]} 10. g4 {[%emt 0:00:00]} Bd7 {[%emt 0:01:30] The position is equal.} 11. Nh3 {[%emt 0:01:00]} Nd5 {[%emt 0:00:30] Prevents Bf4} 12. Bb3 {[%emt 0:00:30]} (12. Bd2 $11) 12... h5 $1 $15 {[%emt 0:00:30]} 13. Ng5 {[%emt 0:00:30]} e6 {[%emt 0:00:30]} 14. Bd2 {[%emt 0:00:30]} Be7 {[%emt 0:00:30]} 15. Bxd5 {[%emt 0:00:00]} (15. O-O-O $11) 15... cxd5 $17 {[%emt 0:00:00]} (15... exd5 16. O-O-O $15) 16. O-O-O {[%emt 0:01:00]} a5 {[%emt 0:01:00]} ({Black should play} 16... Qb6 17. h4 Qa6 18. Qxa6 bxa6) 17. Kb1 {[%emt 0:00:00]} b5 {[%emt 0:00:30]} 18. h4 {[%emt 0:01:00]} Qc4 {[%emt 0:00:00]} 19. Qe3 {[%emt 0:00:00]} b4 {[%emt 0:01:00]} 20. Rhe1 {[%emt 0:01:00]} b3 {[%emt 0:00:30]} (20... Bf6 $17 21. Nh3 Bxh4) 21. Bc1 {[%emt 0:00:00]} bxa2+ {[%emt 0:00:00]} 22. Ka1 {[%emt 0:01:00]} Ra6 {[%emt 0:01:00]} 23. Qf4 {[%emt 0:00:00]} f6 {[%emt 0:00:30]} 24. Nh3 {[%emt 0:00:00]} a4 {[%emt 0:00:30] Threatens to win with ...Rb6.} 25. Qb8+ {[%emt 0:01:30]} (25. gxh5 $15 a3 (25... Rxh5 26. Qg4 $11) 26. Qb8+ Bc8 27. h6) 25... Bd8 {[%emt 0:00:00]} ({Better is} 25... Bc8 $17 {Strongly threatening ...hxg4.} 26. gxh5 a3 (26... Rxh5 27. Qg3 $11)) 26. Nf4 {[%emt 0:00:00] [#]} (26. Qg3 $11 {keeps the balance.} hxg4 (26... a3 27. gxh5 Ba5 28. Qxg7 $11) 27. Qxg4) 26... a3 $1 $36 {[%emt 0:01:00][%mdl 2560] Keeping White busy.} 27. Qb7 {[%emt 0:01:00]} (27. gxh5 axb2+) 27... Rd6 {[%emt 0:00:00] Some like it hot} (27... axb2+ 28. Bxb2 hxg4 29. fxg4 Rxh4 30. Nxd5 $19) (27... hxg4 $142 28. fxg4 axb2+ (28... Rxh4 29. Nxd5 axb2+ 30. Bxb2 $19) 29. Bxb2 Rxh4 30. Nxd5 Qc6 (30... Rxg4 31. Ne3 $16) 31. Qxc6 Rxc6) 28. gxh5 {[%emt 0:00:30]} axb2+ {[%emt 0:00:00]} 29. Bxb2 {[%emt 0:00:30][%cal Of4e6]} Rh7 {[%emt 0:00:00]} 30. h6 {[%emt 0:00:30]} Rxh6 $19 {[%emt 0:02:00]} (30... gxh6 31. Nxe6 Qc6 32. Nxd8+ Kxd8 33. Qb8+ Bc8 34. Rg1 $14 (34. Kxa2 $2 Rb7 $19)) 31. Nxe6 {[%emt 0:00:30]} (31. h5 $142) 31... Rxe6 {[%emt 0:00:00]} ({Worse is} 31... Bxe6 32. Qxg7 Rxh4 33. Qg3 $16) 32. Rxe6+ {[%emt 0:00:00]} Bxe6 {[%emt 0:01:00]} 33. Re1 {[%emt 0:00:00]} f5 {[%emt 0:00:00]} 34. Qxg7 {[%emt 0:00:00]} Rf6 {[%emt 0:00:00] ...Qd3 is the strong threat.} ({Inferior is} 34... Rxh4 35. Rxe6+) 35. h5 {[%emt 0:00:00] [#] Hoping for h6.} Qc7 $1 {[%emt 0:01:30]} 36. Qh8+ {[%emt 0:02:30]} Kd7 {[%emt 0:00:00]} 37. h6 {[%emt 0:00:00]} Qg3 {[%emt 0:01:00][%csl LRe1,LRf3] Prevents h7} 38. Rh1 {[%emt 0:00:00] aiming for h7.} Qg2 {[%emt 0:00:00]} 39. Rh5 {[%emt 0:01:30]} (39. Re1 $19 Bg8 (39... Qxf3 40. h7 $11) (39... Qg8 $2 40. Qxg8 Bxg8 41. Bc1 $19) 40. Ba3) 39... Bf7 {[%emt 0:01:00]} 40. Qh7 {[%emt 0:00:30]} Be7 {[%emt 0:00:30] Weighted Error Value: White=0.41/Black=0.17 (very precise) .  Mistake:       	White=7     	Black=4      Inaccurate:     	White=2     	Black=1      OK:         	White=8     	Black=7      Best:        	White=3     	Black=6      Strong:       	---       	Black=2      Brilliant:      	---       	Black=1} 0-1